bitfinex-derivatives/quotes_ETHF0:USTF0_20241105
["timestamp","ask_amount","ask_price","bid_price","bid_amount"]
[1730848536274,7.11496433,2433.3,2432.6,0.9031]
[1730848536471,0.41103,2433.1,2432.8,0.41106]
[1730848536859,0.41103,2433.0,2432.7,0.41107]
[1730848537069,0.41103,2433.0,2432.8,0.41106]
[1730848537571,0.41101,2433.2,2432.9,0.41104]
[1730848537874,0.41101,2433.2,2433.0,0.4559]
[1730848538072,0.41101,2433.1,2433.0,0.4559]
[1730848539372,7.11496433,2433.3,2433.0,0.4559]
[1730848539674,0.41101,2433.1,2433.0,0.4559]
[1730848540069,7.11496433,2433.3,2433.0,0.4559]
[1730848540265,4.52319,2433.3,2433.1,0.41101]
[1730848540464,0.411,2433.2,2433.0,0.86693]
[1730848540673,4.1122,2433.3,2433.0,0.86693]
[1730848540872,4.52319,2433.3,2433.0,0.86693]
[1730848541272,4.52319,2433.3,2433.1,0.41101]
[1730848541776,4.1122,2433.3,2433.0,0.4559]
[1730848542078,0.411,2433.2,2433.0,0.86692]
[1730848543075,4.52319,2433.3,2433.1,0.41101]
[1730848543273,4.1122,2433.3,2433.0,0.4559]
[1730848543473,0.411,2433.2,2433.0,0.86693]
[1730848543876,4.52319,2433.3,2433.0,0.86693]
[1730848544274,0.41101,2433.2,2433.0,0.86693]
[1730848544979,4.1122,2433.3,2433.0,0.4559]
[1730848545181,4.52319,2433.3,2433.1,0.41101]
[1730848547081,3.2078,2433.3,2433.2,0.411]
[1730848547982,0.41096,2433.5,2433.1,0.9282]
[1730848548181,0.41096,2433.4,2433.3,0.41097]
[1730848548383,0.41096,2433.5,2433.3,0.41097]
[1730848548776,4.52056,2433.5,2433.3,0.41097]
[1730848549578,0.41096,2433.5,2433.3,0.41097]
[1730848551591,0.41096,2433.5,2433.4,0.4389]
[1730848552191,4.52056,2433.5,2433.4,0.4389]
[1730848553387,0.41102,2433.1,2432.9,3.2078]
[1730848553689,7.70305433,2433.5,2433.0,0.41103]
[1730848553690,0.41101,2433.2,2433.0,0.41103]
[1730848554075,0.4706,2433.1,2433.0,0.41103]
[1730848554479,4.581,2433.1,2432.9,3.6619]
[1730848554682,0.4706,2433.1,2433.0,0.41103]
[1730848555587,0.88163,2433.1,2432.9,3.6619]
[1730848555887,0.88162,2433.1,2432.9,4.07295]
[1730848556383,0.4706,2433.1,2433.0,0.41103]
[1730848556587,0.4706,2433.1,2432.9,4.07294]
[1730848557392,0.88161,2433.1,2432.9,4.07294]
[1730848557785,0.41103,2433.0,2432.9,3.6619]
[1730848557995,0.88163,2433.1,2432.9,3.6619]
[1730848558287,0.41103,2433.0,2432.9,3.6619]
[1730848559395,0.41103,2433.0,2432.6,1.0481463]
[1730848559396,4.1104,2433.0,2432.6,4.2559463]
[1730848559585,0.41107,2432.8,2432.7,0.2718835]
[1730848559896,0.41108,2432.7,2432.6,3.6737]
[1730848560091,0.87228,2432.7,2432.6,3.94573092]
[1730848560387,0.87228,2432.7,2432.6,3.6737]
[1730848560595,41.67228,2432.7,2432.6,3.6737]
[1730848560787,0.41112,2432.5,2432.3,1.4592963]
[1730848560985,0.41112,2432.5,2432.4,0.2720729]
[1730848561188,41.21112,2432.5,2432.4,0.2720729]
[1730848561587,50.68506433,2432.5,2432.2,0.4659]
[1730848561796,0.41115,2432.3,2432.2,0.4659]
[1730848562592,0.41113,2432.4,2432.2,0.4659]
[1730848562894,0.41115,2432.3,2432.2,0.4659]
[1730848563198,0.87775,2432.3,2432.2,0.4659]
[1730848564092,0.41117,2432.2,2431.9,3.2078]
[1730848564282,0.4666,2432.3,2432.0,0.4501]
[1730848564486,0.87776,2432.3,2432.0,0.86129]
[1730848564887,0.4666,2432.3,2432.2,0.41117]
[1730848565505,44.0078,2432.5,2432.1,0.4505]
[1730848565506,3.2078,2432.5,2432.1,0.4505]
[1730848565698,3.2078,2432.5,2432.4,0.41113]
[1730848566588,3.2078,2432.5,2432.3,0.41114]
[1730848566789,41.66371,2432.6,2432.3,0.41114]
[1730848567396,41.2526,2432.6,2432.2,0.4637]
[1730848567596,0.41115,2432.3,2432.1,0.41118]
[1730848568098,0.41113,2432.4,2432.0,0.86129]
[1730848568298,0.4333,2432.2,2432.0,0.86129]
[1730848568486,0.4333,2432.2,2432.1,0.41118]
[1730848568693,0.4333,2432.2,2432.0,0.4501]
[1730848568894,0.41118,2432.1,2432.0,0.4501]
[1730848569207,0.84447,2432.2,2432.0,0.4501]
[1730848569501,0.84447,2432.2,2432.0,0.8613]
[1730848570090,0.4333,2432.2,2432.1,0.41118]
[1730848570600,0.4333,2432.2,2432.0,0.86129]
[1730848570999,0.4333,2432.2,2432.0,0.4501]
[1730848571211,0.4333,2432.2,2432.0,0.86129]
[1730848571688,0.4333,2432.2,2432.0,0.4501]
[1730848571895,0.84448,2432.2,2432.0,0.4501]
[1730848572097,0.41118,2432.1,2432.0,0.4501]
[1730848573398,0.4333,2432.2,2432.0,0.4501]
[1730848573601,41.21112,2432.5,2432.3,0.41114]
[1730848573798,0.41113,2432.4,2432.1,0.87657]
[1730848574099,40.8,2432.5,2432.0,0.86129]
[1730848574100,0.41116,2432.3,2432.0,0.86129]
[1730848574304,44.0078,2432.5,2432.0,0.4501]
[1730848574603,44.41892,2432.5,2432.2,0.41115]
[1730848574894,0.41113,2432.4,2432.2,0.41115]
[1730848575100,44.0078,2432.5,2432.1,0.41118]
[1730848575101,0.41115,2432.3,2432.1,0.41118]
[1730848576194,0.41115,2432.3,2432.0,0.86129]
[1730848576396,0.41115,2432.3,2432.0,0.4501]
[1730848576901,0.41115,2432.3,2432.0,0.86129]
[1730848577101,0.8962,2432.2,2432.0,0.86129]
[1730848577498,0.8962,2432.2,2432.1,0.41118]
[1730848577805,0.8962,2432.2,2432.0,0.4501]
[1730848578001,0.8962,2432.2,2432.0,0.86128]
[1730848578504,0.8962,2432.2,2432.0,0.4501]
[1730848578805,0.8962,2432.2,2432.1,0.41118]
[1730848579298,0.8962,2432.2,2432.0,0.86128]
[1730848579498,0.8962,2432.2,2432.1,0.41118]
[1730848579896,44.0078,2432.5,2432.0,0.4501]
[1730848580205,3.2078,2432.5,2432.4,0.41113]
[1730848581298,3.2078,2432.5,2432.4,4.52233]
[1730848581498,4.0832,2433.1,2432.4,5.13903]
[1730848581698,0.41104,2433.0,2432.8,0.41106]
[1730848582398,0.41104,2433.0,2432.6,0.4649]
[1730848582399,4.0832,2433.1,2432.6,0.4649]
[1730848582600,40.8,2433.3,2433.2,0.411]
[1730848582805,3.61877,2433.4,2433.1,0.41101]
[1730848583099,3.2078,2433.4,2433.2,0.4306]
[1730848583407,0.85608,2433.3,2433.2,0.4306]
[1730848583910,0.4451,2433.3,2433.2,0.4306]
[1730848584301,0.4451,2433.3,2433.2,0.8416]
[1730848584609,0.85608,2433.3,2433.2,0.4306]
[1730848585906,0.4451,2433.3,2433.2,0.4306]
[1730848588508,0.4451,2433.3,2433.2,0.8416]
[1730848588711,0.4451,2433.3,2433.2,0.4306]
[1730848589612,0.4451,2433.3,2433.2,0.8416]
[1730848590405,3.2078,2433.4,2433.3,0.41098]
[1730848590610,3.2078,2433.4,2433.2,0.84158]
[1730848590920,5.77386433,2433.4,2432.9,3.2078]
[1730848591106,0.4506,2433.3,2433.1,0.411]
[1730848593018,0.86159,2433.3,2433.0,0.85622]
[1730848593315,0.4506,2433.3,2433.0,0.4452]
[1730848593619,0.86158,2433.3,2433.1,0.41101]
[1730848595619,0.86158,2433.3,2433.0,0.4452]
[1730848595805,0.86158,2433.3,2433.0,0.85622]
[1730848596012,0.86158,2433.3,2433.0,0.4452]
[1730848596316,0.86158,2433.3,2433.0,0.85622]
[1730848598312,0.4506,2433.3,2433.0,0.85622]
[1730848598819,0.86158,2433.3,2433.0,0.85622]
[1730848599121,0.4506,2433.3,2432.8,3.2078]
[1730848599326,2.56606433,2432.8,2432.6,0.98039]
[1730848599621,0.41106,2432.9,2432.6,0.98039]
[1730848599622,3.2078,2432.9,2432.8,0.41106]
[1730848600013,0.41101,2433.1,2432.8,0.41106]
[1730848601520,0.41102,2433.1,2432.8,0.41106]
[1730848601711,0.41101,2433.1,2432.8,0.41106]
[1730848604016,1.29011,2433.2,2432.9,0.41104]
[1730848604220,0.41101,2433.1,2433.0,0.4585]
[1730848605310,0.8791,2433.2,2432.8,0.445]
[1730848605521,0.8791,2433.2,2432.8,0.4585]
[1730848605816,0.41105,2432.9,2432.8,0.4585]
[1730848606219,0.8791,2433.2,2432.8,0.4585]
[1730848606522,0.41104,2433.0,2432.8,0.86956]
[1730848608821,0.41102,2433.1,2432.9,0.41105]
[1730848609023,0.41102,2433.1,2432.8,0.86955]
[1730848609716,4.0869,2433.2,2432.8,0.4585]
[1730848610015,4.0869,2433.2,2432.9,0.4515]
[1730848610318,0.41102,2433.1,2432.9,0.86254]
[1730848613209,0.8791,2433.2,2432.9,0.86254]
[1730848613423,0.8791,2433.2,2433.0,0.41102]
[1730848613613,1.29011,2433.2,2433.0,0.41102]
[1730848615825,0.8791,2433.2,2433.1,0.41101]
[1730848616025,0.8791,2433.2,2433.0,0.41102]
[1730848616528,1.2901,2433.2,2433.0,0.41102]
[1730848616827,0.8791,2433.2,2433.1,0.41101]
[1730848617022,1.2901,2433.2,2433.0,0.41102]
[1730848617221,0.8791,2433.2,2432.8,0.4585]
[1730848617417,0.41101,2433.1,2432.9,0.41104]
[1730848618032,0.8791,2433.2,2432.8,0.4585]
[1730848618228,1.29011,2433.2,2433.1,0.41101]
[1730848618626,1.29011,2433.2,2432.8,0.4585]
[1730848618827,1.29011,2433.2,2433.0,0.41103]
[1730848620425,0.437,2433.2,2433.1,0.41101]
[1730848620635,1.31535,2433.5,2433.3,0.41097]
[1730848620820,1.31535,2433.5,2433.4,0.464]
[1730848621129,0.41102,2433.1,2432.9,3.61884]
[1730848621327,0.41102,2433.1,2432.9,3.6718]
[1730848621328,0.88333,2433.0,2432.9,3.6718]
[1730848621527,0.9044,2433.0,2432.9,4.08285]
[1730848624124,0.9044,2433.0,2432.9,3.6718]
[1730848624429,1.31543,2433.0,2432.9,3.2078]
[1730848624933,1.31543,2433.0,2432.7,0.41108]
[1730848625125,0.9044,2433.0,2432.9,0.41105]
[1730848625429,0.4723,2433.0,2432.9,0.41105]
[1730848625933,0.4723,2433.0,2432.9,0.68328786]
[1730848626124,0.4723,2433.0,2432.9,0.68339084]
[1730848626324,0.4723,2433.0,2432.9,1.14219546]
[1730848626838,0.4723,2433.0,2432.9,1.1421979]
[1730848628932,0.4723,2433.0,2432.9,1.5745979]
[1730848629131,0.41101,2433.2,2433.0,0.41102]
[1730848630029,0.41101,2433.1,2433.0,0.41102]
[1730848630230,0.41101,2433.1,2433.0,0.68354587]
[1730848630833,2.55285029,2433.3,2433.0,0.68354587]
[1730848630834,0.41101,2433.2,2433.0,0.68354587]
[1730848631030,2.96384029,2433.3,2433.1,0.411]
[1730848631227,2.50724029,2433.3,2433.1,0.411]
[1730848632430,0.454,2433.3,2432.9,0.8912]
[1730848632752,3.61863,2434.2,2433.5,1.02736]
[1730848633057,3.61863,2434.2,2434.0,1.18445029]
[1730848633058,0.4484,2434.2,2434.0,1.18445029]
[1730848633337,0.41089,2433.9,2433.7,1.07268442]
[1730848633528,1.18445029,2433.8,2433.7,0.4411]
[1730848633729,1.18445029,2433.8,2433.7,0.85201]
[1730848633730,1.63285029,2433.8,2433.7,0.85201]
[1730848633932,2.04375029,2433.8,2433.7,0.71308003]
[1730848634226,2.04375029,2433.8,2433.7,0.4411]
[1730848634227,1.63285029,2433.8,2433.7,0.4411]
[1730848637731,0.4484,2433.8,2433.7,0.85201]
[1730848637942,0.4557,2434.1,2433.7,5.73435029]
[1730848638140,3.2078,2434.4,2433.7,5.73435029]
[1730848638141,0.41081,2434.3,2434.0,1.59531029]
[1730848638342,1.62095029,2434.4,2434.1,0.8807]
[1730848638530,2.03175029,2434.4,2434.1,1.29154]
[1730848639347,0.8473,2434.4,2434.1,1.29154]
[1730848639731,0.8473,2434.4,2434.1,0.8807]
[1730848639732,0.4365,2434.4,2434.1,0.8807]
[1730848640146,0.4365,2434.4,2434.3,0.41081]
[1730848640346,0.4365,2434.4,2434.2,0.41082]
[1730848640743,0.4365,2434.4,2434.3,0.41081]
[1730848640947,0.8473,2434.4,2434.1,1.29153]
[1730848641137,0.41082,2434.3,2434.1,0.8807]
[1730848641347,0.41082,2434.3,2434.1,1.29154]
[1730848641540,0.4365,2434.4,2434.1,0.8807]
[1730848641748,0.8473,2434.4,2434.1,1.29154]
[1730848642044,0.4365,2434.4,2434.2,0.41082]
[1730848642248,0.4365,2434.4,2434.1,0.8807]
[1730848642438,0.41082,2434.3,2434.1,0.4515]
[1730848642648,0.87212,2434.3,2434.1,0.4515]
[1730848643050,0.4613,2434.3,2434.1,0.4515]
[1730848643241,0.41083,2434.2,2434.1,0.4515]
[1730848644443,0.41086,2434.0,2433.9,3.2078]
[1730848644852,0.41091,2433.7,2433.6,0.4349]
[1730848645145,40.8,2433.7,2433.6,0.4349]
[1730848645447,41.21091,2433.7,2433.6,0.4349]
[1730848645746,41.2439,2433.7,2433.3,0.4415]
[1730848645944,41.2439,2433.7,2433.5,0.41094]
[1730848646348,41.2439,2433.7,2433.4,0.4349]
[1730848646537,0.41093,2433.6,2433.4,0.4349]
[1730848647050,0.46,2433.5,2433.4,0.4349]
[1730848647853,0.46,2433.5,2433.4,0.84586]
[1730848648052,0.46,2433.5,2433.4,0.4349]
[1730848648350,0.87095,2433.5,2433.4,0.4349]
[1730848648550,0.46,2433.5,2433.4,0.4349]
[1730848649249,0.87095,2433.5,2433.4,0.4349]
[1730848649447,0.87095,2433.5,2433.2,3.2078]
[1730848649448,7.13455038,2433.5,2433.2,3.2078]
[1730848649651,0.41097,2433.4,2433.2,3.2078]
[1730848650551,0.41097,2433.4,2433.2,3.6188]
[1730848650945,0.41097,2433.4,2433.2,0.411]
[1730848651545,44.4517,2433.7,2433.1,6.23075038]
[1730848651753,3.6517,2433.7,2433.5,0.41094]
[1730848651954,4.06261,2433.7,2433.6,0.458]
[1730848654150,3.6517,2433.7,2433.2,0.4551]
[1730848654351,0.41095,2433.5,2433.3,0.4325]
[1730848654950,0.41095,2433.5,2433.1,3.2078]
[1730848654951,0.4358,2433.4,2433.1,3.2078]
[1730848655152,0.41102,2433.1,2432.7,0.93957]
[1730848655349,0.9282,2433.3,2432.7,0.93957]
[1730848655350,2.56495038,2433.2,2432.7,0.4325]
[1730848655649,0.41106,2432.9,2432.7,0.4325]
[1730848655851,0.4662,2432.8,2432.7,0.4325]
[1730848659451,0.4358,2433.0,2432.7,0.84357]
[1730848660448,0.4358,2433.0,2432.7,0.4325]
[1730848660843,0.4358,2433.0,2432.9,0.41105]
[1730848661048,0.4358,2433.0,2432.7,0.4325]
[1730848661450,0.4358,2433.0,2432.8,0.41105]
[1730848661653,3.2078,2433.1,2432.9,0.41103]
[1730848661860,3.2078,2433.1,2433.0,0.41103]
[1730848662259,3.61881,2433.1,2432.9,0.41104]
[1730848662454,3.2078,2433.1,2432.9,0.41104]
[1730848662656,0.41099,2433.3,2432.8,5.77275038]
[1730848662857,4.1555,2433.4,2433.0,0.41102]
[1730848662858,0.9477,2433.4,2433.0,0.41102]
[1730848663155,0.41099,2433.3,2433.1,0.41101]
[1730848663562,0.41099,2433.3,2433.2,0.4477]
[1730848663863,0.9477,2433.4,2433.2,0.4477]
[1730848664061,6.80006038,2433.7,2433.3,0.41098]
[1730848664062,0.41094,2433.6,2433.3,0.41098]
[1730848664255,3.61871,2433.7,2433.5,0.41094]
[1730848664655,3.61871,2433.7,2433.4,0.41096]
[1730848664957,3.61871,2433.7,2433.3,0.4584]
[1730848665161,3.61871,2433.7,2433.5,0.41094]
[1730848665559,3.2078,2433.7,2433.5,0.41094]
[1730848666259,3.2078,2433.7,2433.3,0.4584]
[1730848666455,3.61872,2433.7,2433.4,0.41095]
[1730848666660,3.2078,2433.7,2433.5,0.41094]
[1730848666858,3.61873,2433.7,2433.4,0.41095]
[1730848667059,0.41094,2433.6,2433.3,0.86936]
[1730848667265,3.61872,2433.7,2433.4,0.41096]
[1730848667465,3.61872,2433.7,2433.5,0.41094]
[1730848667866,3.61872,2433.7,2433.4,0.41095]
[1730848668561,3.2078,2433.7,2433.5,0.41095]
[1730848668762,3.61872,2433.7,2433.4,0.41096]
[1730848670458,3.61872,2433.7,2433.4,0.41095]
[1730848670662,0.4591,2433.8,2433.5,0.41094]
[1730848670663,0.87001,2433.8,2433.5,0.41094]
[1730848671357,40.8,2433.7,2433.5,0.41094]
[1730848671555,41.21091,2433.7,2433.5,0.41094]
[1730848671763,0.41097,2433.4,2433.2,0.8587]
[1730848673664,46.57275038,2433.7,2433.2,0.4477]
[1730848673865,0.41101,2433.2,2432.9,0.97534]
[1730848674073,0.83992,2433.1,2432.8,3.61886]
[1730848674365,0.4289,2433.1,2432.9,0.41104]
[1730848674965,0.83992,2433.1,2432.8,3.61885]
[1730848675472,0.83992,2433.1,2432.9,0.41105]
[1730848675673,0.83992,2433.1,2432.8,0.41105]
[1730848676272,0.4289,2433.1,2432.7,0.4681]
[1730848676567,0.41106,2432.9,2432.7,0.4681]
[1730848676774,0.41106,2432.8,2432.7,0.4681]
[1730848676971,2.56495038,2433.0,2432.7,0.4681]
[1730848677170,0.41104,2433.0,2432.7,0.87917]
[1730848677565,0.41106,2432.9,2432.7,0.4681]
[1730848678871,3.6367,2433.1,2432.7,0.4681]
[1730848678872,0.41106,2432.8,2432.7,0.4681]
[1730848679167,0.87046,2432.8,2432.7,0.4681]
[1730848680373,0.4594,2432.8,2432.7,0.87918]
[1730848680568,0.4594,2432.8,2432.7,0.4681]
[1730848680569,0.87046,2432.8,2432.7,0.4681]
[1730848683771,0.87046,2432.8,2432.4,0.4339]
[1730848683772,0.4594,2432.8,2432.4,0.4339]
[1730848683975,0.4467,2432.7,2432.4,0.9022]
[1730848684171,0.85779,2432.7,2432.4,1.31333]
[1730848684573,0.4467,2432.7,2432.5,0.41111]
[1730848684774,3.2078,2432.9,2432.6,2.56495038]
[1730848684978,3.2078,2432.9,2432.6,2.97604038]
[1730848684979,3.61886,2432.9,2432.6,2.97604038]
[1730848685171,0.41109,2432.7,2432.4,1.31332]
[1730848685969,0.4111,2432.6,2432.4,0.9022]
[1730848686175,0.86269,2432.7,2432.4,1.31333]
[1730848686478,0.41112,2432.5,2432.4,0.4683]
[1730848686673,0.41111,2432.6,2432.4,0.4683]
[1730848686976,0.41112,2432.5,2432.4,0.4683]
[1730848687472,0.41114,2432.4,2432.2,3.2078]
[1730848687677,0.87324,2432.4,2432.2,3.2078]
[1730848688382,0.87324,2432.4,2432.1,0.4536]
[1730848688383,0.4621,2432.4,2432.1,0.4536]
[1730848688571,0.87324,2432.4,2432.1,0.4536]
[1730848690485,0.41116,2432.3,2432.1,0.4536]
[1730848690978,0.41115,2432.3,2432.1,0.4536]
[1730848691175,0.4609,2432.2,2432.1,0.4536]
[1730848691380,0.4609,2432.2,2432.1,0.86478]
[1730848692180,0.4609,2432.2,2432.1,0.4536]
[1730848692580,0.4609,2432.2,2432.1,0.86478]
[1730848693791,0.4609,2432.2,2432.1,0.4536]
[1730848694087,0.4621,2432.4,2432.1,0.4536]
[1730848694088,0.41115,2432.3,2432.1,0.4536]
[1730848694682,0.4621,2432.4,2432.1,0.4536]
[1730848694887,0.41117,2432.2,2432.1,0.4536]
[1730848695191,0.4112,2432.0,2431.9,3.2078]
[1730848695790,0.4648,2432.1,2431.9,3.2078]
[1730848695991,0.87599,2432.1,2431.9,3.2078]
[1730848696191,0.4452,2432.0,2431.9,3.2078]
[1730848698094,0.4452,2432.0,2431.8,0.86452]
[1730848700095,0.4452,2432.0,2431.8,0.4533]
[1730848700297,0.41122,2431.9,2431.8,0.4533]
[1730848703802,0.4452,2432.0,2431.8,0.4533]
[1730848704000,0.4452,2432.0,2431.8,0.86452]
[1730848704195,0.4452,2432.0,2431.9,0.4402]
[1730848704793,0.8564,2432.0,2431.9,0.4402]
[1730848705488,0.4452,2432.0,2431.9,0.4402]
[1730848705695,4.08378,2432.1,2431.9,0.85142]
[1730848705895,0.4112,2432.0,2431.9,0.4402]
[1730848706292,3.6726,2432.1,2431.9,0.4402]
[1730848706293,4.08379,2432.1,2431.9,0.4402]
[1730848706693,3.6726,2432.1,2431.9,0.4402]
[1730848706896,0.88477,2432.2,2432.0,0.4112]
[1730848707095,0.88477,2432.2,2431.9,0.4402]
[1730848707096,0.88477,2432.2,2431.9,0.85141]
[1730848707296,0.41118,2432.1,2431.9,0.85141]
[1730848707497,0.41118,2432.1,2431.9,0.85142]
[1730848707905,0.4736,2432.2,2431.9,0.85142]
[1730848708109,0.88478,2432.2,2432.0,0.4112]
[1730848708893,0.88478,2432.2,2431.9,0.9017]
[1730848709097,0.41119,2432.1,2431.9,0.9017]
[1730848709307,0.88478,2432.2,2432.0,0.41119]
[1730848709808,0.4736,2432.2,2431.9,0.9017]
[1730848710005,0.41119,2432.1,2431.9,1.31291]
[1730848710205,0.4736,2432.2,2431.9,1.31291]
[1730848710508,0.88477,2432.2,2432.0,0.41119]
[1730848710902,0.88477,2432.2,2431.9,0.9017]
[1730848711109,0.88477,2432.2,2432.0,0.4112]
[1730848711516,0.41119,2432.1,2431.9,1.31291]
[1730848711804,0.88477,2432.2,2431.9,0.9017]
[1730848712011,0.4736,2432.2,2431.9,0.9017]
[1730848712311,0.4736,2432.2,2432.0,0.41119]
[1730848712312,0.88477,2432.2,2432.0,0.41119]
[1730848712707,44.39268038,2432.7,2432.0,4.112]
[1730848712708,46.57275038,2432.7,2432.0,4.112]
[1730848713007,46.57275038,2432.7,2432.3,0.41114]
[1730848713008,0.86831,2432.6,2432.3,0.41114]
[1730848713215,0.86831,2432.6,2432.4,0.4724]
[1730848714706,44.4543,2432.7,2432.4,0.88352]
[1730848714707,0.85759,2432.7,2432.4,0.88352]
[1730848714907,0.4465,2432.7,2432.5,0.87481]
[1730848716610,0.85758,2432.7,2432.5,0.87481]
[1730848717401,0.4465,2432.7,2432.5,0.4637]
[1730848717605,0.85877,2432.8,2432.6,0.41108]
[1730848717909,0.4477,2432.8,2432.5,0.4637]
[1730848718107,0.4477,2432.8,2432.7,0.41108]
[1730848718417,0.41109,2432.7,2432.5,0.87481]
[1730848718711,0.4477,2432.8,2432.5,0.4637]
[1730848718912,0.4477,2432.8,2432.7,0.41108]
[1730848719211,0.4477,2432.8,2432.6,0.41109]
[1730848720819,0.4477,2432.8,2432.5,0.4637]
[1730848721117,0.4477,2432.8,2432.7,0.41108]
[1730848721616,0.4477,2432.8,2432.5,0.4637]
[1730848721809,0.4477,2432.8,2432.6,0.41109]
[1730848724618,3.61885,2433.0,2432.7,0.41107]
[1730848724814,0.4593,2432.9,2432.8,0.85566]
[1730848725015,0.85783,2433.1,2432.8,0.85566]
[1730848725016,0.4468,2433.1,2432.8,0.4446]
[1730848725327,0.4593,2433.2,2433.1,0.41101]
[1730848726422,3.61877,2433.4,2433.1,0.41101]
[1730848726612,3.2078,2433.4,2433.3,0.41098]
[1730848727122,0.901,2433.8,2433.3,3.652]
[1730848727416,0.4593,2433.8,2433.6,0.41092]
[1730848727609,0.4593,2433.8,2433.7,0.85171]
[1730848729521,3.2078,2434.0,2433.9,0.41088]
[1730848729719,3.2078,2434.0,2433.8,0.41088]
[1730848729919,3.2078,2434.0,2433.8,0.4109]
[1730848730114,3.2078,2434.0,2433.8,0.41088]
[1730848730313,3.2078,2434.0,2433.7,0.8974]
[1730848730314,3.61866,2434.0,2433.7,1.3083]
[1730848730626,3.2078,2434.0,2433.7,1.3083]
[1730848730822,3.2078,2434.0,2433.8,0.41089]
[1730848731516,3.2078,2434.0,2433.7,1.3083]
[1730848731720,3.2078,2434.0,2433.7,0.8974]
[1730848731911,3.2078,2434.0,2433.8,0.41089]
[1730848732115,3.2078,2434.0,2433.7,0.8974]
[1730848732311,3.2078,2434.0,2433.9,0.41088]
[1730848732511,0.4464,2434.2,2434.1,0.41085]
[1730848732917,0.4464,2434.2,2434.1,4.51885]
[1730848733419,2.56495038,2434.8,2434.1,4.51885]
[1730848733420,3.61852,2434.9,2434.7,0.41074]
[1730848733621,3.61852,2434.9,2434.2,1.02708]
[1730848733622,40.8,2435.0,2434.8,0.41073]
[1730848733931,3.2078,2435.3,2435.0,0.41068]
[1730848734227,0.41067,2435.2,2434.9,0.4531]
[1730848734626,4.05895,2435.3,2434.9,0.86381]
[1730848735020,3.6483,2435.3,2434.9,0.86381]
[1730848735323,4.05895,2435.3,2434.9,0.4531]
[1730848735518,3.6483,2435.3,2434.9,0.4531]
[1730848735720,3.6483,2435.3,2434.8,3.3188]
[1730848735923,0.41069,2435.1,2434.8,3.3188]
[1730848736225,0.41069,2435.1,2434.6,0.41075]
[1730848736226,3.2078,2435.0,2434.5,3.2078]
[1730848736423,0.41074,2434.8,2434.5,3.2078]
[1730848736623,0.41076,2434.6,2434.5,3.2078]
[1730848736925,0.41076,2434.6,2434.2,2.56495038]
[1730848736926,0.4744,2434.7,2434.2,3.2078]
[1730848737130,0.41078,2434.5,2434.2,3.2078]
[1730848737526,0.4487,2434.4,2434.2,3.2078]
[1730848738134,0.4487,2434.4,2433.9,3.2078]
[1730848738135,4.108,2434.3,2433.9,3.2078]
[1730848738322,0.4487,2434.4,2433.9,3.2078]
[1730848738634,0.41083,2434.2,2433.9,3.2078]
[1730848738831,0.4487,2434.4,2433.9,3.2078]
[1730848739336,0.41083,2434.2,2433.9,3.2078]
[1730848739831,40.8,2434.1,2433.9,3.2078]
[1730848740228,0.4376,2434.0,2433.9,3.2078]
[1730848740426,41.21085,2434.1,2433.9,3.2078]
[1730848740926,0.41086,2434.0,2433.9,3.2078]
[1730848741738,0.41092,2433.7,2433.5,0.096]
[1730848742029,0.41092,2433.7,2433.4,3.2078]
[1730848742224,0.41094,2433.6,2433.4,3.2078]
[1730848742420,2.56495038,2433.9,2433.4,3.2078]
[1730848742630,3.648,2434.0,2433.4,3.2078]
[1730848742631,0.4109,2433.8,2433.4,3.61875]
[1730848743034,3.648,2434.0,2433.4,3.61875]
[1730848743222,0.41091,2433.7,2433.4,3.2078]
[1730848743426,0.41091,2433.7,2433.4,3.61876]
[1730848743625,0.4325,2433.9,2433.4,3.2078]
[1730848743834,0.41092,2433.7,2433.4,3.2078]
[1730848744032,0.41091,2433.8,2433.4,3.61876]
[1730848745234,0.41093,2433.7,2433.4,3.2078]
[1730848745533,0.41093,2433.7,2433.4,3.61876]
[1730848745732,0.4325,2433.9,2433.4,3.61876]
[1730848745927,0.41091,2433.8,2433.4,3.61876]
[1730848746130,0.4325,2433.9,2433.4,3.61876]
[1730848746131,0.41092,2433.7,2433.4,3.61876]
[1730848747034,0.41092,2433.7,2433.4,3.2078]
[1730848747236,0.41092,2433.7,2433.4,3.61876]
[1730848747636,0.41091,2433.8,2433.4,0.41096]
[1730848747837,0.4325,2433.9,2433.4,0.41096]
[1730848748037,0.41092,2433.7,2433.3,0.435]
[1730848748237,0.41092,2433.7,2433.4,0.41096]
[1730848748924,0.41091,2433.8,2433.4,0.41096]
[1730848749126,0.41091,2433.7,2433.4,0.41096]
[1730848749529,0.41091,2433.7,2433.3,0.435]
[1730848749730,0.41095,2433.5,2433.3,0.435]
[1730848749928,0.41096,2433.4,2433.3,0.435]
[1730848750128,6.20525038,2433.9,2433.3,0.435]
[1730848750437,0.41092,2433.7,2433.3,0.84597]
[1730848750738,6.20525038,2433.9,2433.3,0.435]
[1730848750940,0.41095,2433.5,2433.3,0.435]
[1730848751239,0.41094,2433.6,2433.3,0.84598]
[1730848752034,0.41094,2433.6,2433.3,0.435]
[1730848752235,0.41095,2433.5,2433.3,0.435]
[1730848753243,3.2078,2433.8,2433.3,0.435]
[1730848753543,0.41093,2433.6,2433.3,0.435]
[1730848754246,3.2078,2433.8,2433.3,0.435]